Department Family,Entity,Date of Payment,GL Description,Expense Area,Supplier,Voluntary & Community Sector,SME Class,Sole Trader,Transaction number,Purchasing Item Text,Postal Code,Amount in Sterling,Grant?
"Housing, Communities & Local Government",PINS,12/02/2020,Steady State Service Provision,Research and Development,@ITS(SEARCH&SELECTION)LTD,,Small,,5106256526,ODT Benefits Analyst Ext 30-09-20,EC2V 6DL,"13,920.00",
"Housing, Communities & Local Government",PINS,12/02/2020,Steady State Service Provision,Human Resources,A2+B LLP,,Medium,,5106256119,Whistleblowing Service,AB15 4YL,"3,120.00",
"Housing, Communities & Local Government",PINS,11/02/2020,NSI Fees & Expenses,NSI Fees Planning,ANDREW DALE,,Data Not Provided,,5106256687,NSI Fees,DE23 8DP,"1,690.00",
"Housing, Communities & Local Government",PINS,11/02/2020,NSI Fees & Expenses,NSI Expenses Planning,ANDREW DALE,,Data Not Provided,,5106256687,NSI Expenses,DE23 8DP,375.09,
"Housing, Communities & Local Government",PINS,27/02/2020,NSI Fees & Expenses,NSI Expenses Planning,ANDREW DALE,,Data Not Provided,,5106257273,NSI Expenses,DE23 8DP,"1,775.00",
"Housing, Communities & Local Government",PINS,06/02/2020,NSI Fees & Expenses,NSI Fees Planning,ANTHONY THOMPSON,,Micro,,5106256469,NSI Fees,SM2 5HS,"1,050.00",
"Housing, Communities & Local Government",PINS,07/02/2020,Office Supplies,Business Support,BANNER BUSINESS SUPPLIES LTD,,Large,,5106256595,office stationery 19/20,S9 1XU,793,
"Housing, Communities & Local Government",PINS,21/02/2020,Office Supplies,Business Support,BANNER BUSINESS SUPPLIES LTD,,Large,,5106256998,office stationery 19/20,S9 1XU,345.05,
"Housing, Communities & Local Government",PINS,25/02/2020,Catering,TR People,BRISTOL MARRIOTT CITY CENTRE HOTEL,,Large,,5106257184,Annual Training Event,BS1 3AD,"7,500.00",
"Housing, Communities & Local Government",PINS,21/02/2020,Safety equipment,"Finance, Commercial & Business Support",BURLINGTON'S UNIFORMS LTD,,Small,,5106256999,PPE,EN3 7PX,356.62,
"Housing, Communities & Local Government",PINS,06/02/2020,EXP � PURCHASE OF GOODS /SERVICES R & D,Research and Development,CAPITA RESOURCING LTD,,Large,,5106256465,ODT Test Analyst,SL6 1DP,"7,531.22",
"Housing, Communities & Local Government",PINS,11/02/2020,NSI Fees & Expenses,NSI Fees Planning,COLEBOURNE CONSTRUCTION LTD,,Micro,,5106256697,NSI Fees,DE22 2GF,"1,800.00",
"Housing, Communities & Local Government",PINS,11/02/2020,NSI Fees & Expenses,NSI Expenses Planning,COLEBOURNE CONSTRUCTION LTD,,Micro,,5106256697,NSI Expenses,DE22 2GF,640.14,
"Housing, Communities & Local Government",PINS,07/02/2020,Printing,Business Support,CORPORATE DOCUMENT SERVICES LTD,,Data Not Provided,,5106256520,CDS - Printing,LS2 7LY,"1,320.00",
"Housing, Communities & Local Government",PINS,19/02/2020,Travel and Subsistence Account,Inspector Costs + NSI,CORPORATE TRAVEL MANAGEMENT(NORTH)L,,Small,,5106256933,Air Tickets,BD1 5HQ,423.94,
"Housing, Communities & Local Government",PINS,19/02/2020,Travel and Subsistence Account,Inspector Costs + NSI,CORPORATE TRAVEL MANAGEMENT(NORTH)L,,Small,,5106256933,Ferry,BD1 5HQ,314.75,
"Housing, Communities & Local Government",PINS,19/02/2020,Travel and Subsistence Account,Inspector Costs + NSI,CORPORATE TRAVEL MANAGEMENT(NORTH)L,,Small,,5106256933,Rail,BD1 5HQ,"52,799.90",
"Housing, Communities & Local Government",PINS,19/02/2020,Travel and Subsistence Account,Inspector Costs + NSI,CORPORATE TRAVEL MANAGEMENT(NORTH)L,,Small,,5106256933,Rail Fee,BD1 5HQ,444.3,
"Housing, Communities & Local Government",PINS,19/02/2020,Travel and Subsistence Account,Inspector Costs + NSI,CORPORATE TRAVEL MANAGEMENT(NORTH)L,,Small,,5106256933,Web Transaction,BD1 5HQ,"2,232.92",
"Housing, Communities & Local Government",PINS,19/02/2020,Travel and Subsistence Account,Inspector Costs + NSI,CORPORATE TRAVEL MANAGEMENT(NORTH)L,,Small,,5106256933,Hotel,BD1 5HQ,"68,665.95",
"Housing, Communities & Local Government",PINS,19/02/2020,Travel and Subsistence Account,Inspector Costs + NSI,CORPORATE TRAVEL MANAGEMENT(NORTH)L,,Small,,5106256933,Hotel Fee,BD1 5HQ,580.58,
"Housing, Communities & Local Government",PINS,19/02/2020,Travel and Subsistence Account,Inspector Costs + NSI,CORPORATE TRAVEL MANAGEMENT(NORTH)L,,Small,,5106256933,Hotel ,BD1 5HQ,496.55,
"Housing, Communities & Local Government",PINS,05/02/2020,IT at cost,Digital Services,DAISY COMMUNICATIONS LIMITED,,Large,,5106256430,iPhones and accessories x 20,BB9 5SR,"12,706.80",
"Housing, Communities & Local Government",PINS,06/02/2020,Mobile phone costs,Digital Services,DAISY COMMUNICATIONS LIMITED,,Large,,5106256480,Mobile voice & data services x 100,BB9 5SR,"4,062.35",
"Housing, Communities & Local Government",PINS,07/02/2020,Mobile phone costs,Digital Services,DAISY COMMUNICATIONS LIMITED,,Large,,5106256598,Mobile voice & data services x 100,BB9 5SR,407.58,
"Housing, Communities & Local Government",PINS,12/02/2020,NSI Fees & Expenses,NSI Fees Planning,DESIGN 2,,Micro,,5106256727,NSI Fees,PO20 0HX,915,
"Housing, Communities & Local Government",PINS,19/02/2020,NSI Fees & Expenses,NSI Fees Planning,DESIGN 2,,Micro,,5106256959,NSI Fees,PO20 0HX,798,
"Housing, Communities & Local Government",PINS,04/02/2020,Vehicle hire,Inspector Costs + NSI,ENTERPRISE RENT-A-CAR,,Large,,5106256376,Car Hire 19/20,TW20 9FB,"20,851.31",
"Housing, Communities & Local Government",PINS,20/02/2020,IT Systems Testing & Auditing,Digital Services,FIDUS INFORMATION SECURITY LTD,,Small,,5106256903,ICT health check,CB4 0WS,"7,200.00",
"Housing, Communities & Local Government",PINS,20/02/2020,Mobile phone costs,Digital Services,GAMMA TELECOM LTD,,Large,,5106256993,Mobile telephony services 2019-20,EC4M 7RD,"1,436.92",
"Housing, Communities & Local Government",PINS,13/02/2020,EXP � PURCHASE OF GOODS /SERVICES R & D,Research and Development,GOPRO CONSULTING LTD,,Small,,5106256743,V7 - Beta Sprints 15-20,WC1N 2EB,"143,625.55",
"Housing, Communities & Local Government",PINS,19/02/2020,Legal Fees,Wales Support,GOVERNMENT LEGAL DEPT,,Public Bodies,,5106256926,Legal Costs 2019,WC2B 4TS,"6,601.92",
"Housing, Communities & Local Government",PINS,28/02/2020,Legal Fees,Knowledge & Horizon Scanning,GOVERNMENT LEGAL DEPT,,Public Bodies,,5106257296,Disbursements (Sept 2019-March 2020),WC2B 4TS,"30,909.77",
"Housing, Communities & Local Government",PINS,28/02/2020,Legal Fees,Knowledge & Horizon Scanning,GOVERNMENT LEGAL DEPT,,Public Bodies,,5106257296,Fees and Charges (Sept 2019-March 2020),WC2B 4TS,"72,079.47",
"Housing, Communities & Local Government",PINS,04/02/2020,Internal Audit,"Finance, Commercial & Business Support",H M TREASURY,,Public Bodies,,5106256110,Internal Audit 19-20,NR7 0HS,"11,625.00",
"Housing, Communities & Local Government",PINS,10/02/2020,Publications,Knowledge & Horizon Scanning,HAYMARKET MEDIA GROUP LIMITED,,Data Not Provided,,5106256641,Mineral Planning Waste Online,TW1 3SP,377.04,
"Housing, Communities & Local Government",PINS,10/02/2020,Publications,Knowledge & Horizon Scanning,HAYMARKET MEDIA GROUP LIMITED,,Data Not Provided,,5106256641,Mineral Planning Waste Print,TW1 3SP,"1,256.80",
"Housing, Communities & Local Government",PINS,03/02/2020,Agency Staff,Human Resources,HAYS SPECIALIST RECRUITMENT LTD,,Large,,5106256265,Admin OD/HR Support - LJ,NW1 2AF,"1,076.71",
"Housing, Communities & Local Government",PINS,03/02/2020,Agency Staff,Human Resources,HAYS SPECIALIST RECRUITMENT LTD,,Large,,5106256326,Admin OD/HR Support  End Mar-HH,NW1 2AF,"1,196.34",
"Housing, Communities & Local Government",PINS,03/02/2020,EXP � PURCHASE OF GOODS /SERVICES R & D,Research and Development,HAYS SPECIALIST RECRUITMENT LTD,,Large,,5106256238,ODT Scrum Master,NW1 2AF,"2,954.85",
"Housing, Communities & Local Government",PINS,03/02/2020,EXP � PURCHASE OF GOODS /SERVICES R & D,Research and Development,HAYS SPECIALIST RECRUITMENT LTD,,Large,,5106256239,ODT Business Analyst - JB,NW1 2AF,"2,608.50",
"Housing, Communities & Local Government",PINS,03/02/2020,EXP � PURCHASE OF GOODS /SERVICES R & D,Research and Development,HAYS SPECIALIST RECRUITMENT LTD,,Large,,5106256240,ODT Business Analyst - JB,NW1 2AF,"2,086.80",
"Housing, Communities & Local Government",PINS,03/02/2020,EXP � PURCHASE OF GOODS /SERVICES R & D,Research and Development,HAYS SPECIALIST RECRUITMENT LTD,,Large,,5106256242,ODT Interactive Designer,NW1 2AF,"2,851.55",
"Housing, Communities & Local Government",PINS,03/02/2020,EXP � PURCHASE OF GOODS /SERVICES R & D,Research and Development,HAYS SPECIALIST RECRUITMENT LTD,,Large,,5106256254,Test Analyst ODT,NW1 2AF,"2,095.70",
"Housing, Communities & Local Government",PINS,03/02/2020,EXP � PURCHASE OF GOODS /SERVICES R & D,Research and Development,HAYS SPECIALIST RECRUITMENT LTD,,Large,,5106256255,ODT Business Analyst - SH,NW1 2AF,"2,610.00",
"Housing, Communities & Local Government",PINS,03/02/2020,EXP � PURCHASE OF GOODS /SERVICES R & D,Research and Development,HAYS SPECIALIST RECRUITMENT LTD,,Large,,5106256256,ODT Content Designer,NW1 2AF,"2,070.90",
"Housing, Communities & Local Government",PINS,03/02/2020,EXP � PURCHASE OF GOODS /SERVICES R & D,Research and Development,HAYS SPECIALIST RECRUITMENT LTD,,Large,,5106256263,Test Analyst ODT,NW1 2AF,"1,457.10",
"Housing, Communities & Local Government",PINS,03/02/2020,EXP � PURCHASE OF GOODS /SERVICES R & D,Research and Development,HAYS SPECIALIST RECRUITMENT LTD,,Large,,5106256267,Test Analyst - JA,NW1 2AF,"2,260.75",
"Housing, Communities & Local Government",PINS,03/02/2020,Specialist Technical Support,Corporate Services Director,HAYS SPECIALIST RECRUITMENT LTD,,Large,,5106256241,GDPR Trainer,NW1 2AF,"2,832.00",
"Housing, Communities & Local Government",PINS,03/02/2020,Specialist Technical Support,Digital Services,HAYS SPECIALIST RECRUITMENT LTD,,Large,,5106256250,Security Manager Backfill up to 100 days,NW1 2AF,"2,940.78",
"Housing, Communities & Local Government",PINS,05/02/2020,Specialist Technical Support,Digital Services,HAYS SPECIALIST RECRUITMENT LTD,,Large,,5106256409,PHP developer for NI website,NW1 2AF,"3,121.86",
"Housing, Communities & Local Government",PINS,05/02/2020,Specialist Technical Support,Corporate Services Director,HAYS SPECIALIST RECRUITMENT LTD,,Large,,5106256247,Data Protection Liaison Officer,NW1 2AF,"3,580.50",
"Housing, Communities & Local Government",PINS,06/02/2020,Agency Staff,Transformation Prog Management Office,HAYS SPECIALIST RECRUITMENT LTD,,Large,,5106256402,Change Portfolio Comms Lead,NW1 2AF,"2,088.00",
"Housing, Communities & Local Government",PINS,06/02/2020,Specialist Technical Support,TR Organisational Agility,HAYS SPECIALIST RECRUITMENT LTD,,Large,,5106256258,OD Implementation Project Lead,NW1 2AF,"2,457.79",
"Housing, Communities & Local Government",PINS,06/02/2020,Specialist Technical Support,Data and Performance,HAYS SPECIALIST RECRUITMENT LTD,,Large,,5106256266,Senior records manager,NW1 2AF,"3,132.00",
"Housing, Communities & Local Government",PINS,07/02/2020,Agency Staff,Human Resources,HAYS SPECIALIST RECRUITMENT LTD,,Large,,5106256517,Admin OD/HR Support  End Mar-HH,NW1 2AF,"1,196.34",
"Housing, Communities & Local Government",PINS,07/02/2020,Agency Staff,Human Resources,HAYS SPECIALIST RECRUITMENT LTD,,Large,,5106256524,Admin OD/HR Support - LJ,NW1 2AF,"1,196.34",
"Housing, Communities & Local Government",PINS,07/02/2020,EXP � PURCHASE OF GOODS /SERVICES R & D,Research and Development,HAYS SPECIALIST RECRUITMENT LTD,,Large,,5106256507,ODT Scrum Master,NW1 2AF,"2,954.85",
"Housing, Communities & Local Government",PINS,07/02/2020,EXP � PURCHASE OF GOODS /SERVICES R & D,Research and Development,HAYS SPECIALIST RECRUITMENT LTD,,Large,,5106256510,ODTUser Researcher,NW1 2AF,"2,851.55",
"Housing, Communities & Local Government",PINS,07/02/2020,EXP � PURCHASE OF GOODS /SERVICES R & D,Research and Development,HAYS SPECIALIST RECRUITMENT LTD,,Large,,5106256511,ODT Content Designer,NW1 2AF,"2,070.90",
"Housing, Communities & Local Government",PINS,07/02/2020,EXP � PURCHASE OF GOODS /SERVICES R & D,Research and Development,HAYS SPECIALIST RECRUITMENT LTD,,Large,,5106256514,ODT Business Analyst - JB,NW1 2AF,"2,608.50",
"Housing, Communities & Local Government",PINS,07/02/2020,EXP � PURCHASE OF GOODS /SERVICES R & D,Research and Development,HAYS SPECIALIST RECRUITMENT LTD,,Large,,5106256515,ODT Interactive Designer,NW1 2AF,"2,851.55",
"Housing, Communities & Local Government",PINS,07/02/2020,EXP � PURCHASE OF GOODS /SERVICES R & D,Research and Development,HAYS SPECIALIST RECRUITMENT LTD,,Large,,5106256519,Test Analyst ODT,NW1 2AF,"2,095.70",
"Housing, Communities & Local Government",PINS,07/02/2020,EXP � PURCHASE OF GOODS /SERVICES R & D,Research and Development,HAYS SPECIALIST RECRUITMENT LTD,,Large,,5106256522,Test Analyst ODT,NW1 2AF,776.62,
"Housing, Communities & Local Government",PINS,07/02/2020,EXP � PURCHASE OF GOODS /SERVICES R & D,Research and Development,HAYS SPECIALIST RECRUITMENT LTD,,Large,,5106256516,Test Analyst - JA,NW1 2AF,"2,260.75",
"Housing, Communities & Local Government",PINS,07/02/2020,NSI Fees & Expenses,TR Transformation,HAYS SPECIALIST RECRUITMENT LTD,,Large,,5106256522,Test Analyst ODT,NW1 2AF,680.48,
"Housing, Communities & Local Government",PINS,07/02/2020,Specialist Technical Support,Corporate Services Director,HAYS SPECIALIST RECRUITMENT LTD,,Large,,5106256505,GDPR Trainer,NW1 2AF,"2,832.00",
"Housing, Communities & Local Government",PINS,07/02/2020,Specialist Technical Support,Digital Services,HAYS SPECIALIST RECRUITMENT LTD,,Large,,5106256508,PHP developer for NI website,NW1 2AF,"3,121.86",
"Housing, Communities & Local Government",PINS,07/02/2020,Specialist Technical Support,Digital Services,HAYS SPECIALIST RECRUITMENT LTD,,Large,,5106256509,Security Manager Backfill up to 100 days,NW1 2AF,"1,176.31",
"Housing, Communities & Local Government",PINS,07/02/2020,Specialist Technical Support,Digital Services,HAYS SPECIALIST RECRUITMENT LTD,,Large,,5106256590,O365 Tech Specialist to end Mar 2020 (NW,NW1 2AF,"2,940.78",
"Housing, Communities & Local Government",PINS,07/02/2020,Specialist Technical Support,Corporate Services Director,HAYS SPECIALIST RECRUITMENT LTD,,Large,,5106256536,Data Protection Liason Officer Extension,NW1 2AF,"3,580.50",
"Housing, Communities & Local Government",PINS,10/02/2020,EXP � PURCHASE OF GOODS /SERVICES R & D,Research and Development,HAYS SPECIALIST RECRUITMENT LTD,,Large,,5106256622,ODT PMO Lead,NW1 2AF,"1,880.60",
"Housing, Communities & Local Government",PINS,10/02/2020,EXP � PURCHASE OF GOODS /SERVICES R & D,Research and Development,HAYS SPECIALIST RECRUITMENT LTD,,Large,,5106256518,ODT Test Analyst - VV,NW1 2AF,"2,260.75",
"Housing, Communities & Local Government",PINS,10/02/2020,Specialist Technical Support,Digital Services,HAYS SPECIALIST RECRUITMENT LTD,,Large,,5106256617,O365 Tech Specialist to end Mar 2020 (NW,NW1 2AF,"2,940.78",
"Housing, Communities & Local Government",PINS,10/02/2020,Specialist Technical Support,TR Customer,HAYS SPECIALIST RECRUITMENT LTD,,Large,,5106256618,BA Resource for CRM,NW1 2AF,"2,737.49",
"Housing, Communities & Local Government",PINS,10/02/2020,Specialist Technical Support,Performance Recovery,HAYS SPECIALIST RECRUITMENT LTD,,Large,,5106256513,BI Developer Ext to 31.03.2020,NW1 2AF,"2,830.32",
"Housing, Communities & Local Government",PINS,10/02/2020,Specialist Technical Support,TR Organisational Agility,HAYS SPECIALIST RECRUITMENT LTD,,Large,,5106256616,OD Implementation Project Lead,NW1 2AF,"2,457.79",
"Housing, Communities & Local Government",PINS,10/02/2020,Specialist Technical Support,Performance Recovery,HAYS SPECIALIST RECRUITMENT LTD,,Large,,5106256632,BI Developer Ext to 31.03.2020,NW1 2AF,"2,830.32",
"Housing, Communities & Local Government",PINS,11/02/2020,Specialist Technical Support,Data and Performance,HAYS SPECIALIST RECRUITMENT LTD,,Large,,5106256521,Senior records manager,NW1 2AF,"3,132.00",
"Housing, Communities & Local Government",PINS,12/02/2020,Agency Staff,Transformation Prog Management Office,HAYS SPECIALIST RECRUITMENT LTD,,Large,,5106256708,Change Portfolio Comms Lead,NW1 2AF,"2,088.00",
"Housing, Communities & Local Government",PINS,12/02/2020,Specialist Technical Support,Digital Services,HAYS SPECIALIST RECRUITMENT LTD,,Large,,5106256729,O365 Tech Specialist to end Mar 2020 (NW,NW1 2AF,"2,352.62",
"Housing, Communities & Local Government",PINS,13/02/2020,Agency Staff,Human Resources,HAYS SPECIALIST RECRUITMENT LTD,,Large,,5106256780,Admin OD/HR Support - HH,NW1 2AF,"1,196.34",
"Housing, Communities & Local Government",PINS,13/02/2020,EXP � PURCHASE OF GOODS /SERVICES R & D,Research and Development,HAYS SPECIALIST RECRUITMENT LTD,,Large,,5106256757,ODTUser Researcher,NW1 2AF,"2,851.55",
"Housing, Communities & Local Government",PINS,14/02/2020,Agency Staff,Human Resources,HAYS SPECIALIST RECRUITMENT LTD,,Large,,5106256798,Admin OD/HR Support  End Mar-HH,NW1 2AF,"1,196.34",
"Housing, Communities & Local Government",PINS,14/02/2020,EXP � PURCHASE OF GOODS /SERVICES R & D,Research and Development,HAYS SPECIALIST RECRUITMENT LTD,,Large,,5106256796,ODT Interactive Designer,NW1 2AF,"1,710.93",
"Housing, Communities & Local Government",PINS,14/02/2020,EXP � PURCHASE OF GOODS /SERVICES R & D,Research and Development,HAYS SPECIALIST RECRUITMENT LTD,,Large,,5106256797,ODT Content Designer,NW1 2AF,"1,656.72",
"Housing, Communities & Local Government",PINS,14/02/2020,EXP � PURCHASE OF GOODS /SERVICES R & D,Research and Development,HAYS SPECIALIST RECRUITMENT LTD,,Large,,5106256799,ODT Scrum Master,NW1 2AF,"2,954.85",
"Housing, Communities & Local Government",PINS,14/02/2020,EXP � PURCHASE OF GOODS /SERVICES R & D,Research and Development,HAYS SPECIALIST RECRUITMENT LTD,,Large,,5106256800,Test Analyst ODT,NW1 2AF,"2,095.70",
"Housing, Communities & Local Government",PINS,14/02/2020,EXP � PURCHASE OF GOODS /SERVICES R & D,Research and Development,HAYS SPECIALIST RECRUITMENT LTD,,Large,,5106256808,ODT PMO Lead,NW1 2AF,"1,692.54",
"Housing, Communities & Local Government",PINS,14/02/2020,EXP � PURCHASE OF GOODS /SERVICES R & D,Research and Development,HAYS SPECIALIST RECRUITMENT LTD,,Large,,5106256787,ODT Test Analyst - VV,NW1 2AF,"2,260.75",
"Housing, Communities & Local Government",PINS,14/02/2020,Specialist Technical Support,Digital Services,HAYS SPECIALIST RECRUITMENT LTD,,Large,,5106256788,O365 Tech Specialist to end Mar 2020 (NW,NW1 2AF,"2,940.78",
"Housing, Communities & Local Government",PINS,14/02/2020,Specialist Technical Support,Corporate Services Director,HAYS SPECIALIST RECRUITMENT LTD,,Large,,5106256789,GDPR Trainer,NW1 2AF,"2,832.00",
"Housing, Communities & Local Government",PINS,14/02/2020,Specialist Technical Support,TR Customer,HAYS SPECIALIST RECRUITMENT LTD,,Large,,5106256793,BA Resource for CRM,NW1 2AF,"3,421.86",
"Housing, Communities & Local Government",PINS,14/02/2020,Specialist Technical Support,Digital Services,HAYS SPECIALIST RECRUITMENT LTD,,Large,,5106256801,Security Manager Backfill up to 100 days,NW1 2AF,"2,940.66",
"Housing, Communities & Local Government",PINS,14/02/2020,Specialist Technical Support,Digital Services,HAYS SPECIALIST RECRUITMENT LTD,,Large,,5106256805,PHP developer for NI website,NW1 2AF,"3,121.86",
"Housing, Communities & Local Government",PINS,17/02/2020,Agency Staff,TR Transformation,HAYS SPECIALIST RECRUITMENT LTD,,Large,,5106256877,Contract for DPIA Analyst JM,NW1 2AF,"1,671.05",
"Housing, Communities & Local Government",PINS,17/02/2020,Specialist Technical Support,TR Organisational Agility,HAYS SPECIALIST RECRUITMENT LTD,,Large,,5106256876,OD Implementation Project Lead,NW1 2AF,"2,457.79",
"Housing, Communities & Local Government",PINS,18/02/2020,Agency Staff,Human Resources,HAYS SPECIALIST RECRUITMENT LTD,,Large,,5106256915,Admin OD/HR Support  End Mar-LJ,NW1 2AF,"1,196.34",
"Housing, Communities & Local Government",PINS,18/02/2020,Specialist Technical Support,Corporate Services Director,HAYS SPECIALIST RECRUITMENT LTD,,Large,,5106256786,Data Protection Liason Officer Extension,NW1 2AF,"3,580.50",
"Housing, Communities & Local Government",PINS,18/02/2020,Specialist Technical Support,Data and Performance,HAYS SPECIALIST RECRUITMENT LTD,,Large,,5106256790,Senior records manager,NW1 2AF,"3,132.00",
"Housing, Communities & Local Government",PINS,18/02/2020,Specialist Technical Support,"Finance, Commercial & Business Support",HAYS SPECIALIST RECRUITMENT LTD,,Large,,5106256932,Commercial Manager NG,NW1 2AF,"1,465.99",
"Housing, Communities & Local Government",PINS,19/02/2020,Agency Staff,"Finance, Commercial & Business Support",HAYS SPECIALIST RECRUITMENT LTD,,Large,,5106256985,Commercial Manager,NW1 2AF,"2,443.32",
"Housing, Communities & Local Government",PINS,19/02/2020,EXP � PURCHASE OF GOODS /SERVICES R & D,Research and Development,HAYS SPECIALIST RECRUITMENT LTD,,Large,,5106256912,Test Analyst - JA,NW1 2AF,"2,260.75",
"Housing, Communities & Local Government",PINS,20/02/2020,Agency Staff,Transformation Prog Management Office,HAYS SPECIALIST RECRUITMENT LTD,,Large,,5106256984,Change Portfolio Comms Lead,NW1 2AF,"1,670.40",
"Housing, Communities & Local Government",PINS,20/02/2020,Agency Staff,"Finance, Commercial & Business Support",HAYS SPECIALIST RECRUITMENT LTD,,Large,,5106257035,Commercial Manager,NW1 2AF,"2,443.32",
"Housing, Communities & Local Government",PINS,20/02/2020,Specialist Technical Support,Performance Recovery,HAYS SPECIALIST RECRUITMENT LTD,,Large,,5106256794,BI Developer Ext to 31.03.2020,NW1 2AF,"2,830.32",
"Housing, Communities & Local Government",PINS,20/02/2020,Specialist Technical Support,"Finance, Commercial & Business Support",HAYS SPECIALIST RECRUITMENT LTD,,Large,,5106256987,Commercial Manager NG,NW1 2AF,"2,198.99",
"Housing, Communities & Local Government",PINS,20/02/2020,Specialist Technical Support,"Finance, Commercial & Business Support",HAYS SPECIALIST RECRUITMENT LTD,,Large,,5106256988,Commercial Manager NG,NW1 2AF,"2,443.32",
"Housing, Communities & Local Government",PINS,21/02/2020,Agency Staff,TR Transformation,HAYS SPECIALIST RECRUITMENT LTD,,Large,,5106257013,Contract for DPIA Analyst JM,NW1 2AF,"3,063.59",
"Housing, Communities & Local Government",PINS,21/02/2020,Agency Staff,Human Resources,HAYS SPECIALIST RECRUITMENT LTD,,Large,,5106257014,Admin OD/HR Support  End Mar-LJ,NW1 2AF,"1,196.34",
"Housing, Communities & Local Government",PINS,21/02/2020,Agency Staff,Human Resources,HAYS SPECIALIST RECRUITMENT LTD,,Large,,5106257015,Admin OD/HR Support  End Mar-HH,NW1 2AF,"1,196.34",
"Housing, Communities & Local Government",PINS,21/02/2020,EXP � PURCHASE OF GOODS /SERVICES R & D,Research and Development,HAYS SPECIALIST RECRUITMENT LTD,,Large,,5106257002,ODT Business Analyst - JB,NW1 2AF,"2,608.50",
"Housing, Communities & Local Government",PINS,21/02/2020,EXP � PURCHASE OF GOODS /SERVICES R & D,Research and Development,HAYS SPECIALIST RECRUITMENT LTD,,Large,,5106257003,Test Analyst ODT,NW1 2AF,"1,457.10",
"Housing, Communities & Local Government",PINS,21/02/2020,EXP � PURCHASE OF GOODS /SERVICES R & D,Research and Development,HAYS SPECIALIST RECRUITMENT LTD,,Large,,5106257004,ODT Scrum Master,NW1 2AF,"2,954.85",
"Housing, Communities & Local Government",PINS,21/02/2020,EXP � PURCHASE OF GOODS /SERVICES R & D,Research and Development,HAYS SPECIALIST RECRUITMENT LTD,,Large,,5106257008,Test Analyst ODT,NW1 2AF,"1,457.10",
"Housing, Communities & Local Government",PINS,21/02/2020,EXP � PURCHASE OF GOODS /SERVICES R & D,Research and Development,HAYS SPECIALIST RECRUITMENT LTD,,Large,,5106257011,ODT Content Designer,NW1 2AF,"1,656.72",
"Housing, Communities & Local Government",PINS,21/02/2020,EXP � PURCHASE OF GOODS /SERVICES R & D,Research and Development,HAYS SPECIALIST RECRUITMENT LTD,,Large,,5106257012,ODT PMO Lead,NW1 2AF,"1,880.60",
"Housing, Communities & Local Government",PINS,21/02/2020,EXP � PURCHASE OF GOODS /SERVICES R & D,Research and Development,HAYS SPECIALIST RECRUITMENT LTD,,Large,,5106257016,Test Analyst ODT,NW1 2AF,"2,095.70",
"Housing, Communities & Local Government",PINS,21/02/2020,EXP � PURCHASE OF GOODS /SERVICES R & D,Research and Development,HAYS SPECIALIST RECRUITMENT LTD,,Large,,5106257024,ODT Interactive Designer,NW1 2AF,"2,851.55",
"Housing, Communities & Local Government",PINS,21/02/2020,EXP � PURCHASE OF GOODS /SERVICES R & D,Research and Development,HAYS SPECIALIST RECRUITMENT LTD,,Large,,5106257019,Test Analyst - JA,NW1 2AF,"1,808.60",
"Housing, Communities & Local Government",PINS,21/02/2020,EXP � PURCHASE OF GOODS /SERVICES R & D,Research and Development,HAYS SPECIALIST RECRUITMENT LTD,,Large,,5106257022,ODT Test Analyst - VV,NW1 2AF,"2,260.75",
"Housing, Communities & Local Government",PINS,21/02/2020,Specialist Technical Support,Corporate Services Director,HAYS SPECIALIST RECRUITMENT LTD,,Large,,5106257001,GDPR Trainer,NW1 2AF,"2,832.00",
"Housing, Communities & Local Government",PINS,21/02/2020,Specialist Technical Support,Digital Services,HAYS SPECIALIST RECRUITMENT LTD,,Large,,5106257017,O365 Tech Specialist to end Mar 2020 (NW,NW1 2AF,"2,940.78",
"Housing, Communities & Local Government",PINS,21/02/2020,Specialist Technical Support,Digital Services,HAYS SPECIALIST RECRUITMENT LTD,,Large,,5106257020,Security Manager Backfill up to 100 days,NW1 2AF,"2,940.78",
"Housing, Communities & Local Government",PINS,21/02/2020,Specialist Technical Support,TR Customer,HAYS SPECIALIST RECRUITMENT LTD,,Large,,5106257023,BA Resource for CRM,NW1 2AF,"3,421.86",
"Housing, Communities & Local Government",PINS,21/02/2020,Specialist Technical Support,Corporate Services Director,HAYS SPECIALIST RECRUITMENT LTD,,Large,,5106257010,Data Protection Liason Officer Extension,NW1 2AF,"3,580.50",
"Housing, Communities & Local Government",PINS,21/02/2020,Specialist Technical Support,Data and Performance,HAYS SPECIALIST RECRUITMENT LTD,,Large,,5106257018,Senior records manager,NW1 2AF,"3,132.00",
"Housing, Communities & Local Government",PINS,24/02/2020,EXP � PURCHASE OF GOODS /SERVICES R & D,Research and Development,HAYS SPECIALIST RECRUITMENT LTD,,Large,,5106257118,ODT Business Analyst - JB,NW1 2AF,"2,851.55",
"Housing, Communities & Local Government",PINS,24/02/2020,EXP � PURCHASE OF GOODS /SERVICES R & D,Research and Development,HAYS SPECIALIST RECRUITMENT LTD,,Large,,5106257121,ODT Business Analyst - SH,NW1 2AF,"2,088.00",
"Housing, Communities & Local Government",PINS,24/02/2020,Specialist Technical Support,"Finance, Commercial & Business Support",HAYS SPECIALIST RECRUITMENT LTD,,Large,,5106257122,Commercial Manager NG,NW1 2AF,"2,443.32",
"Housing, Communities & Local Government",PINS,25/02/2020,EXP � PURCHASE OF GOODS /SERVICES R & D,Research and Development,HAYS SPECIALIST RECRUITMENT LTD,,Large,,5106257146,ODTUser Researcher,NW1 2AF,"2,851.55",
"Housing, Communities & Local Government",PINS,25/02/2020,Specialist Technical Support,Digital Services,HAYS SPECIALIST RECRUITMENT LTD,,Large,,5106257154,PHP developer for NI website,NW1 2AF,"3,121.86",
"Housing, Communities & Local Government",PINS,25/02/2020,Specialist Technical Support,Performance Recovery,HAYS SPECIALIST RECRUITMENT LTD,,Large,,5106257007,BI Developer Ext to 31.03.2020,NW1 2AF,"2,830.32",
"Housing, Communities & Local Government",PINS,25/02/2020,Specialist Technical Support,TR Organisational Agility,HAYS SPECIALIST RECRUITMENT LTD,,Large,,5106257120,OD Implementation Project Lead,NW1 2AF,"1,843.34",
"Housing, Communities & Local Government",PINS,26/02/2020,Agency Staff,Transformation Prog Management Office,HAYS SPECIALIST RECRUITMENT LTD,,Large,,5106257214,Change Portfolio Comms Lead,NW1 2AF,"2,088.00",
"Housing, Communities & Local Government",PINS,26/02/2020,EXP � PURCHASE OF GOODS /SERVICES R & D,Research and Development,HAYS SPECIALIST RECRUITMENT LTD,,Large,,5106257210,ODTUser Researcher,NW1 2AF,"2,851.55",
"Housing, Communities & Local Government",PINS,28/02/2020,Agency Staff,Human Resources,HAYS SPECIALIST RECRUITMENT LTD,,Large,,5106257285,Admin OD/HR Support  End Mar-LJ,NW1 2AF,"1,196.34",
"Housing, Communities & Local Government",PINS,28/02/2020,Agency Staff,TR Transformation,HAYS SPECIALIST RECRUITMENT LTD,,Large,,5106257288,Contract for DPIA Analyst JM,NW1 2AF,"2,785.08",
"Housing, Communities & Local Government",PINS,28/02/2020,EXP � PURCHASE OF GOODS /SERVICES R & D,Research and Development,HAYS SPECIALIST RECRUITMENT LTD,,Large,,5106257278,ODT Business Analyst - JB,NW1 2AF,"2,851.55",
"Housing, Communities & Local Government",PINS,28/02/2020,EXP � PURCHASE OF GOODS /SERVICES R & D,Research and Development,HAYS SPECIALIST RECRUITMENT LTD,,Large,,5106257279,Test Analyst ODT,NW1 2AF,"1,165.68",
"Housing, Communities & Local Government",PINS,28/02/2020,EXP � PURCHASE OF GOODS /SERVICES R & D,Research and Development,HAYS SPECIALIST RECRUITMENT LTD,,Large,,5106257280,ODT Interactive Designer,NW1 2AF,"1,710.93",
"Housing, Communities & Local Government",PINS,28/02/2020,EXP � PURCHASE OF GOODS /SERVICES R & D,Research and Development,HAYS SPECIALIST RECRUITMENT LTD,,Large,,5106257281,ODT Scrum Master,NW1 2AF,"2,954.85",
"Housing, Communities & Local Government",PINS,28/02/2020,EXP � PURCHASE OF GOODS /SERVICES R & D,Research and Development,HAYS SPECIALIST RECRUITMENT LTD,,Large,,5106257282,ODT Business Analyst - JB,NW1 2AF,"2,608.50",
"Housing, Communities & Local Government",PINS,28/02/2020,EXP � PURCHASE OF GOODS /SERVICES R & D,Research and Development,HAYS SPECIALIST RECRUITMENT LTD,,Large,,5106257283,Test Analyst ODT,NW1 2AF,"2,095.70",
"Housing, Communities & Local Government",PINS,28/02/2020,EXP � PURCHASE OF GOODS /SERVICES R & D,Research and Development,HAYS SPECIALIST RECRUITMENT LTD,,Large,,5106257287,ODT Content Designer,NW1 2AF,"1,863.81",
"Housing, Communities & Local Government",PINS,28/02/2020,EXP � PURCHASE OF GOODS /SERVICES R & D,Research and Development,HAYS SPECIALIST RECRUITMENT LTD,,Large,,5106257290,ODT PMO Lead,NW1 2AF,"1,692.54",
"Housing, Communities & Local Government",PINS,28/02/2020,EXP � PURCHASE OF GOODS /SERVICES R & D,Research and Development,HAYS SPECIALIST RECRUITMENT LTD,,Large,,5106257284,ODT Test Analyst - VV,NW1 2AF,"2,260.75",
"Housing, Communities & Local Government",PINS,28/02/2020,EXP � PURCHASE OF GOODS /SERVICES R & D,Research and Development,HAYS SPECIALIST RECRUITMENT LTD,,Large,,5106257291,Test Analyst - JA,NW1 2AF,904.3,
"Housing, Communities & Local Government",PINS,28/02/2020,Specialist Technical Support,TR Customer,HAYS SPECIALIST RECRUITMENT LTD,,Large,,5106257277,BA Resource for CRM,NW1 2AF,"3,421.86",
"Housing, Communities & Local Government",PINS,28/02/2020,Specialist Technical Support,Digital Services,HAYS SPECIALIST RECRUITMENT LTD,,Large,,5106257286,O365 Tech Specialist to end Mar 2020 (NW,NW1 2AF,"2,940.78",
"Housing, Communities & Local Government",PINS,28/02/2020,Specialist Technical Support,Digital Services,HAYS SPECIALIST RECRUITMENT LTD,,Large,,5106257289,Security Manager Backfill up to 100 days,NW1 2AF,882.24,
"Housing, Communities & Local Government",PINS,13/02/2020,Steady State Service Provision,Human Resources,HEALTH  MANAGEMENT LTD,,Medium,,5106256784,Health Management 2018/19,BN8 5NN,"2,417.05",
"Housing, Communities & Local Government",PINS,27/02/2020,NSI Fees & Expenses,NSI Fees Planning,INSPIRE PLANNING SOLUTIONS,,Micro,,5106257268,NSI Fees,SK3 0XA,"1,680.00",
"Housing, Communities & Local Government",PINS,27/02/2020,NSI Fees & Expenses,NSI Expenses Planning,INSPIRE PLANNING SOLUTIONS,,Micro,,5106257268,NSI Expenses,SK3 0XA,488.04,
"Housing, Communities & Local Government",PINS,27/02/2020,NSI Fees & Expenses,NSI Fees Planning,INSPIRE PLANNING SOLUTIONS,,Micro,,5106257271,NSI Fees,SK3 0XA,"1,350.00",
"Housing, Communities & Local Government",PINS,27/02/2020,NSI Fees & Expenses,NSI Expenses Planning,INSPIRE PLANNING SOLUTIONS,,Micro,,5106257271,NSI Expenses,SK3 0XA,488.02,
"Housing, Communities & Local Government",PINS,27/02/2020,NSI Fees & Expenses,NSI Fees Planning,INSPIRE PLANNING SOLUTIONS,,Micro,,5106257274,NSI Fees,SK3 0XA,"3,960.00",
"Housing, Communities & Local Government",PINS,13/02/2020,NSI Fees & Expenses,NSI Fees Planning,JOHN WHALLEY,,Micro,,5106256771,NSI Fees,LL54 5BS,"1,975.00",
"Housing, Communities & Local Government",PINS,13/02/2020,NSI Fees & Expenses,NSI Expenses Planning,JOHN WHALLEY,,Micro,,5106256771,NSI Expenses,LL54 5BS,296.9,
"Housing, Communities & Local Government",PINS,13/02/2020,NSI Fees & Expenses,NSI Fees Planning,JOHN WHALLEY,,Micro,,5106256776,NSI Fees,LL54 5BS,"2,050.00",
"Housing, Communities & Local Government",PINS,13/02/2020,NSI Fees & Expenses,NSI Expenses Planning,JOHN WHALLEY,,Micro,,5106256776,NSI Expenses,LL54 5BS,338.1,
"Housing, Communities & Local Government",PINS,20/02/2020,NSI Fees & Expenses,NSI Fees Planning,JOHN WHALLEY,,Micro,,5106256977,NSI Fees,LL54 5BS,"1,800.00",
"Housing, Communities & Local Government",PINS,05/02/2020,NSI Fees & Expenses,NSI Fees Planning,KIM BENNETT PLANNING SERVICES,,Micro,,5106256406,NSI Fees,CT2 7ET,"1,115.00",
"Housing, Communities & Local Government",PINS,27/02/2020,Training,TR People,KORN FERRY (UK) LTD,,Large,,5106257253,ET & GRd 6 dev & coaching aug19 - mar20,SW1Y 6QB,"12,434.00",
"Housing, Communities & Local Government",PINS,26/02/2020,Training,Human Resources,KPMG LLP (CSL),,Large,,5106257142,3 New Managers Programme (AA-Grd6),E14 5GL,"15,350.00",
"Housing, Communities & Local Government",PINS,14/02/2020,NSI Fees & Expenses,NSI Fees Planning,LEIGH & GLENNIE LTD,,Micro,,5106256810,NSI Fees,SL5 9EA,"3,240.00",
"Housing, Communities & Local Government",PINS,20/02/2020,NSI Fees & Expenses,NSI Fees Planning,MARTIN ANDREWS PLANNING CONSULTANCY,,Micro,,5106256979,NSI Fees,BH15 1HH,"2,010.00",
"Housing, Communities & Local Government",PINS,10/02/2020,Web Services,Digital Services,MEMSET LIMITED,,Small,,5106256642,Hosting of mini-servers for 3 months,GU6 8TB,677.02,
"Housing, Communities & Local Government",PINS,10/02/2020,Web Services,Digital Services,MEMSET LIMITED,,Small,,5106256643,Hosting of mini-servers for 3 months,GU6 8TB,721.12,
"Housing, Communities & Local Government",PINS,10/02/2020,Web Services,Digital Services,MEMSET LIMITED,,Small,,5106256644,Hosting of mini-servers for 3 months,GU6 8TB,"1,232.68",
"Housing, Communities & Local Government",PINS,06/02/2020,EXP � PURCHASE OF GOODS /SERVICES R & D,Research and Development,METHODS BUSINESS AND DIGITAL TECH,,Medium,,5106256394,ODT Project Manager - BS,EC1N 8TS,"12,075.00",
"Housing, Communities & Local Government",PINS,06/02/2020,EXP � PURCHASE OF GOODS /SERVICES R & D,Research and Development,METHODS BUSINESS AND DIGITAL TECH,,Medium,,5106256414,ODT Project Manager PM2 - AM,EC1N 8TS,"11,076.00",
"Housing, Communities & Local Government",PINS,06/02/2020,EXP � PURCHASE OF GOODS /SERVICES R & D,Research and Development,METHODS BUSINESS AND DIGITAL TECH,,Medium,,5106256482,Digital Delivery Manager,EC1N 8TS,"12,784.80",
"Housing, Communities & Local Government",PINS,06/02/2020,Specialist Technical Support,Corporate Services Director,METHODS BUSINESS AND DIGITAL TECH,,Medium,,5106256412,Corporate Systems Del Mger PH,EC1N 8TS,"17,306.10",
"Housing, Communities & Local Government",PINS,06/02/2020,Specialist Technical Support,Digital Services,METHODS BUSINESS AND DIGITAL TECH,,Medium,,5106256413,Sharepoint & Teams Specialist,EC1N 8TS,"11,400.00",
"Housing, Communities & Local Government",PINS,06/02/2020,Specialist Technical Support,Corporate Services Director,METHODS BUSINESS AND DIGITAL TECH,,Medium,,5106256415,Contract extension to 17th Jan 2020,EC1N 8TS,"12,670.50",
"Housing, Communities & Local Government",PINS,07/02/2020,EXP � PURCHASE OF GOODS /SERVICES R & D,Research and Development,METHODS BUSINESS AND DIGITAL TECH,,Medium,,5106256405,Test Manager and Automation ODT,EC1N 8TS,"9,775.00",
"Housing, Communities & Local Government",PINS,07/02/2020,EXP � PURCHASE OF GOODS /SERVICES R & D,Research and Development,METHODS BUSINESS AND DIGITAL TECH,,Medium,,5106256407,ODT Test Analyst - SB,EC1N 8TS,"3,465.00",
"Housing, Communities & Local Government",PINS,07/02/2020,Specialist Technical Support,Corporate Services Director,METHODS BUSINESS AND DIGITAL TECH,,Medium,,5106256501,DCS Business Analyst,EC1N 8TS,"14,490.00",
"Housing, Communities & Local Government",PINS,10/02/2020,EXP � PURCHASE OF GOODS /SERVICES R & D,Research and Development,METHODS BUSINESS AND DIGITAL TECH,,Medium,,5106256393,Contract Extension 12.9.19 - 31.12.2019,EC1N 8TS,"17,100.00",
"Housing, Communities & Local Government",PINS,10/02/2020,Specialist Technical Support,Performance Recovery,METHODS BUSINESS AND DIGITAL TECH,,Medium,,5106256408,Inquiry Review PM to 31.03.2020,EC1N 8TS,"13,226.35",
"Housing, Communities & Local Government",PINS,10/02/2020,Specialist Technical Support,Performance Recovery,METHODS BUSINESS AND DIGITAL TECH,,Medium,,5106256500,Power BI Developer to 31.03.2020,EC1N 8TS,"14,476.44",
"Housing, Communities & Local Government",PINS,10/02/2020,Specialist Technical Support,Performance Recovery,METHODS BUSINESS AND DIGITAL TECH,,Medium,,5106256626,Extension to 31.03.2020,EC1N 8TS,"17,776.44",
"Housing, Communities & Local Government",PINS,10/02/2020,Specialist Technical Support,Performance Recovery,METHODS BUSINESS AND DIGITAL TECH,,Medium,,5106256629,Product Analyst Resource,EC1N 8TS,"15,136.44",
"Housing, Communities & Local Government",PINS,11/02/2020,Specialist Technical Support,Research and Development,METHODS BUSINESS AND DIGITAL TECH,,Medium,,5106256608,ODT Senior Project Manager - JL,EC1N 8TS,"15,390.00",
"Housing, Communities & Local Government",PINS,11/02/2020,Specialist Technical Support,Performance Recovery,METHODS BUSINESS AND DIGITAL TECH,,Medium,,5106256695,PM for performance Recovery to 31.03.20,EC1N 8TS,"20,960.40",
"Housing, Communities & Local Government",PINS,20/02/2020,Specialist Technical Support,"Finance, Commercial & Business Support",METHODS BUSINESS AND DIGITAL TECH,,Medium,,5106256975,Welsh Scoping Lead ext 31/03/2020,EC1N 8TS,"15,840.00",
"Housing, Communities & Local Government",PINS,06/02/2020,IT - Service Contracts,Digital Services,MHCLG,,Public Bodies,,5106256347,Fujitsu laptop builds Apr to Dec 2019,HP2 4XN,"5,995.00",
"Housing, Communities & Local Government",PINS,18/02/2020,Legal Fees,Knowledge & Horizon Scanning,MHCLG,,Public Bodies,,5106256914,Legal Advisory Service 2019/2020,HP2 4XN,"135,484.00",
"Housing, Communities & Local Government",PINS,21/02/2020,IT - Service Contracts,Digital Services,MHCLG,,Public Bodies,,5106257104,Daisy Wifi & WAN June to Dec 2019,HP2 4XN,"40,321.60",
"Housing, Communities & Local Government",PINS,21/02/2020,IT - Service Contracts,Digital Services,MHCLG,,Public Bodies,,5106257104,Daisy telephony recharge Oct - Dec 2019,HP2 4XN,"22,003.20",
"Housing, Communities & Local Government",PINS,26/02/2020,NSI Fees & Expenses,NSI Fees Planning,MR D HAINSWORTH,,Data Not Provided,,5106257192,NSI Fees,S60 3EE,"2,520.00",
"Housing, Communities & Local Government",PINS,28/02/2020,EXP � PURCHASE OF GOODS /SERVICES R & D,Research and Development,OFSTED,,Data Not Provided,,5106257298,Business Changes an PMO,M1 2WD,"27,634.23",
"Housing, Communities & Local Government",PINS,28/02/2020,EXP � PURCHASE OF GOODS /SERVICES R & D,Research and Development,OFSTED,,Data Not Provided,,5106257359,Business Change and PMO T&S,M1 2WD,"1,700.14",
"Housing, Communities & Local Government",PINS,07/02/2020,Conferences and Meeting Facilities,Wales Support,PLANNING AID WALES,,Small,,2100080816,1/20 PINS STAKEHOLDER ENGAGEMENT EVENT,CF14 3NB,250.6,
"Housing, Communities & Local Government",PINS,04/02/2020,Agency Staff,Inspector Development & Support Team,REED SPECIALIST RECRUITMENT LTD,,Large,,5106256067,Agency EO IDST,SW20 0BA,789.24,
"Housing, Communities & Local Government",PINS,04/02/2020,Agency Staff,Inspector Development & Support Team,REED SPECIALIST RECRUITMENT LTD,,Large,,5106256068,AO IDST (HD),SW20 0BA,719.52,
"Housing, Communities & Local Government",PINS,04/02/2020,Agency Staff,Inspector Development & Support Team,REED SPECIALIST RECRUITMENT LTD,,Large,,5106256069,Temp staff for IDST-SC,SW20 0BA,607.99,
"Housing, Communities & Local Government",PINS,04/02/2020,Agency Staff,Professional Leads,REED SPECIALIST RECRUITMENT LTD,,Large,,5106256074,PA Resource,SW20 0BA,762.82,
"Housing, Communities & Local Government",PINS,04/02/2020,Agency Staff,Inspector Development & Support Team,REED SPECIALIST RECRUITMENT LTD,,Large,,5106256335,Temp staff for IDST-SC,SW20 0BA,592.2,
"Housing, Communities & Local Government",PINS,04/02/2020,Agency Staff,Professional Leads,REED SPECIALIST RECRUITMENT LTD,,Large,,5106256336,PA Resource,SW20 0BA,824.06,
"Housing, Communities & Local Government",PINS,04/02/2020,Agency Staff,Inspector Development & Support Team,REED SPECIALIST RECRUITMENT LTD,,Large,,5106256356,AO IDST (HD),SW20 0BA,710.53,
"Housing, Communities & Local Government",PINS,04/02/2020,Agency Staff,Strategy & Corp Governance,REED SPECIALIST RECRUITMENT LTD,,Large,,5106256367,AO PA Resource KL,SW20 0BA,256.74,
"Housing, Communities & Local Government",PINS,04/02/2020,Agency Staff,Strategy & Corp Governance,REED SPECIALIST RECRUITMENT LTD,,Large,,5106256368,AO PA Resource KL - Contract Ext,SW20 0BA,268.74,
"Housing, Communities & Local Government",PINS,04/02/2020,Agency Staff,"Finance, Commercial & Business Support",REED SPECIALIST RECRUITMENT LTD,,Large,,5106256380,AA Storekeeper,SW20 0BA,549.23,
"Housing, Communities & Local Government",PINS,05/02/2020,Agency Staff,Knowledge & Horizon Scanning,REED SPECIALIST RECRUITMENT LTD,,Large,,5106256344,Agency Staff for Library,SW20 0BA,523.01,
"Housing, Communities & Local Government",PINS,06/02/2020,EXP � PURCHASE OF GOODS /SERVICES R & D,Research and Development,REED SPECIALIST RECRUITMENT LTD,,Large,,5106256343,EO ODT Project Support,SW20 0BA,942.48,
"Housing, Communities & Local Government",PINS,06/02/2020,EXP � PURCHASE OF GOODS /SERVICES R & D,Research and Development,REED SPECIALIST RECRUITMENT LTD,,Large,,5106256357,ODT Project Support - SY,SW20 0BA,473.6,
"Housing, Communities & Local Government",PINS,07/02/2020,Agency Staff,Knowledge & Horizon Scanning,REED SPECIALIST RECRUITMENT LTD,,Large,,5106256527,Agency Staff for Library 19-20,SW20 0BA,523.01,
"Housing, Communities & Local Government",PINS,10/02/2020,Agency Staff,Transformation Prog Management Office,REED SPECIALIST RECRUITMENT LTD,,Large,,5106256352,Finance Business Partner,SW20 0BA,"1,444.33",
"Housing, Communities & Local Government",PINS,11/02/2020,Agency Staff,"Finance, Commercial & Business Support",REED SPECIALIST RECRUITMENT LTD,,Large,,5106256675,AA Storekeeper,SW20 0BA,549.23,
"Housing, Communities & Local Government",PINS,11/02/2020,EXP � PURCHASE OF GOODS /SERVICES R & D,Research and Development,REED SPECIALIST RECRUITMENT LTD,,Large,,5106256673,EO ODT Project Support,SW20 0BA,942.48,
"Housing, Communities & Local Government",PINS,12/02/2020,Agency Staff,Inspector Development & Support Team,REED SPECIALIST RECRUITMENT LTD,,Large,,5106256662,Agency EO IDST,SW20 0BA,649.93,
"Housing, Communities & Local Government",PINS,12/02/2020,Agency Staff,Inspector Development & Support Team,REED SPECIALIST RECRUITMENT LTD,,Large,,5106256670,Temp staff for IDST-SC,SW20 0BA,513.24,
"Housing, Communities & Local Government",PINS,12/02/2020,Agency Staff,Knowledge & Horizon Scanning,REED SPECIALIST RECRUITMENT LTD,,Large,,5106256671,Agency Staff for Library,SW20 0BA,588.38,
"Housing, Communities & Local Government",PINS,12/02/2020,Agency Staff,Inspector Development & Support Team,REED SPECIALIST RECRUITMENT LTD,,Large,,5106256674,AO IDST (HD),SW20 0BA,710.53,
"Housing, Communities & Local Government",PINS,12/02/2020,Agency Staff,Professional Leads,REED SPECIALIST RECRUITMENT LTD,,Large,,5106256676,PA Resource,SW20 0BA,835.2,
"Housing, Communities & Local Government",PINS,12/02/2020,EXP � PURCHASE OF GOODS /SERVICES R & D,Research and Development,REED SPECIALIST RECRUITMENT LTD,,Large,,5106256703,ODT Project Support - SY,SW20 0BA,352,
"Housing, Communities & Local Government",PINS,13/02/2020,Agency Staff,Transformation Prog Management Office,REED SPECIALIST RECRUITMENT LTD,,Large,,5106256672,Finance Business Partner,SW20 0BA,"1,444.33",
"Housing, Communities & Local Government",PINS,13/02/2020,Agency Staff,Knowledge & Horizon Scanning,REED SPECIALIST RECRUITMENT LTD,,Large,,5106256760,Agency Staff for Library 19-20,SW20 0BA,588.38,
"Housing, Communities & Local Government",PINS,18/02/2020,Agency Staff,Inspector Development & Support Team,REED SPECIALIST RECRUITMENT LTD,,Large,,5106256900,AO IDST (HD),SW20 0BA,710.53,
"Housing, Communities & Local Government",PINS,18/02/2020,Agency Staff,Professional Leads,REED SPECIALIST RECRUITMENT LTD,,Large,,5106256901,PA Resource,SW20 0BA,701.57,
"Housing, Communities & Local Government",PINS,18/02/2020,Agency Staff,Inspector Development & Support Team,REED SPECIALIST RECRUITMENT LTD,,Large,,5106256904,Agency EO IDST,SW20 0BA,807.47,
"Housing, Communities & Local Government",PINS,18/02/2020,Agency Staff,"Finance, Commercial & Business Support",REED SPECIALIST RECRUITMENT LTD,,Large,,5106256911,AA Storekeeper Ext,SW20 0BA,556.66,
"Housing, Communities & Local Government",PINS,18/02/2020,Agency Staff,Strategy & Corp Governance,REED SPECIALIST RECRUITMENT LTD,,Large,,5106256913,AO PA Resource KL - Contract Ext,SW20 0BA,268.74,
"Housing, Communities & Local Government",PINS,18/02/2020,Agency Staff,Inspector Development & Support Team,REED SPECIALIST RECRUITMENT LTD,,Large,,5106256921,Temp staff for IDST-SC,SW20 0BA,536.93,
"Housing, Communities & Local Government",PINS,18/02/2020,EXP � PURCHASE OF GOODS /SERVICES R & D,Research and Development,REED SPECIALIST RECRUITMENT LTD,,Large,,5106256909,EO ODT Project Support,SW20 0BA,942.48,
"Housing, Communities & Local Government",PINS,19/02/2020,Agency Staff,Knowledge & Horizon Scanning,REED SPECIALIST RECRUITMENT LTD,,Large,,5106256934,Agency Staff for Library 19-20,SW20 0BA,572.04,
"Housing, Communities & Local Government",PINS,20/02/2020,EXP � PURCHASE OF GOODS /SERVICES R & D,Research and Development,REED SPECIALIST RECRUITMENT LTD,,Large,,5106256976,ODT Project Support - SY,SW20 0BA,473.6,
"Housing, Communities & Local Government",PINS,20/02/2020,EXP � PURCHASE OF GOODS /SERVICES R & D,Research and Development,REED SPECIALIST RECRUITMENT LTD,,Large,,5106257047,EO ODT Project Support,SW20 0BA,942.48,
"Housing, Communities & Local Government",PINS,25/02/2020,Agency Staff,"Finance, Commercial & Business Support",REED SPECIALIST RECRUITMENT LTD,,Large,,5106257161,AA Storekeeper Ext,SW20 0BA,549.23,
"Housing, Communities & Local Government",PINS,25/02/2020,Agency Staff,Strategy & Corp Governance,REED SPECIALIST RECRUITMENT LTD,,Large,,5106257171,AO PA Resource KL - Contract Ext,SW20 0BA,268.74,
"Housing, Communities & Local Government",PINS,26/02/2020,Agency Staff,Inspector Development & Support Team,REED SPECIALIST RECRUITMENT LTD,,Large,,5106257190,AO IDST (HD),SW20 0BA,665.56,
"Housing, Communities & Local Government",PINS,26/02/2020,Agency Staff,Inspector Development & Support Team,REED SPECIALIST RECRUITMENT LTD,,Large,,5106257191,Temp staff for IDST-SC,SW20 0BA,536.93,
"Housing, Communities & Local Government",PINS,26/02/2020,Agency Staff,Inspector Development & Support Team,REED SPECIALIST RECRUITMENT LTD,,Large,,5106257193,Agency EO IDST,SW20 0BA,507.11,
"Housing, Communities & Local Government",PINS,26/02/2020,Agency Staff,Transformation Prog Management Office,REED SPECIALIST RECRUITMENT LTD,,Large,,5106257247,Finance Business Partner EXT 30/06/2020,SW20 0BA,"1,502.89",
"Housing, Communities & Local Government",PINS,26/02/2020,EXP � PURCHASE OF GOODS /SERVICES R & D,Research and Development,REED SPECIALIST RECRUITMENT LTD,,Large,,5106257160,EO ODT Project Support,SW20 0BA,942.48,
"Housing, Communities & Local Government",PINS,26/02/2020,EXP � PURCHASE OF GOODS /SERVICES R & D,Research and Development,REED SPECIALIST RECRUITMENT LTD,,Large,,5106257241,ODT Project Support - SY,SW20 0BA,473.6,
"Housing, Communities & Local Government",PINS,05/02/2020,Courier Services,Wales Support,ROYAL MAIL,,Large,,5106256392,Postal Services 9060333362,S49 1HQ,324.6,
"Housing, Communities & Local Government",PINS,05/02/2020,Courier Services,Estates,ROYAL MAIL,,Large,,5106256428,Postal services VAT 19/20,S49 1HQ,"2,228.95",
"Housing, Communities & Local Government",PINS,07/02/2020,Courier Services,Estates,ROYAL MAIL,,Large,,5106256503,Postal services VAT 19/20,S49 1HQ,"2,204.95",
"Housing, Communities & Local Government",PINS,21/02/2020,Courier Services,Estates,ROYAL MAIL,,Large,,5106257044,Postal services VAT 19/20,S49 1HQ,"2,810.39",
"Housing, Communities & Local Government",PINS,27/02/2020,Courier Services,Estates,ROYAL MAIL,,Large,,5106257275,Postal services VAT 19/20,S49 1HQ,"1,468.51",
"Housing, Communities & Local Government",PINS,20/02/2020,Specialist Technical Support,Performance Recovery,SANDERSON GOVERNMENT & DEFENCE,,Large,,5106256753,BI Developer for MiPINS,BS8 2QX,"9,535.50",
"Housing, Communities & Local Government",PINS,17/02/2020,NSI Fees & Expenses,NSI Fees Planning,SANDRA PRAIL LTD,,Micro,,5106256881,NSI Fees,BN16 1RX,"1,620.00",
"Housing, Communities & Local Government",PINS,17/02/2020,NSI Fees & Expenses,NSI Fees Planning,SANDRA PRAIL LTD,,Micro,,5106256884,NSI Fees,BN16 1RX,"1,338.00",
"Housing, Communities & Local Government",PINS,07/02/2020,EXP � PURCHASE OF GOODS /SERVICES R & D,Research and Development,SOLOS CONSULTANTS LTD,,Large,,5106256504,ODT Business Analyst,NG16 1LA,"2,524.65",
"Housing, Communities & Local Government",PINS,14/02/2020,EXP � PURCHASE OF GOODS /SERVICES R & D,Research and Development,SOLOS CONSULTANTS LTD,,Large,,5106256791,ODT Business Analyst,NG16 1LA,"2,524.65",
"Housing, Communities & Local Government",PINS,17/02/2020,Specialist Technical Support,Resourcing & Process,SOLOS CONSULTANTS LTD,,Large,,5106256619,Excel Expert-Forcasting Model Developer,NG16 1LA,816.77,
"Housing, Communities & Local Government",PINS,19/02/2020,Specialist Technical Support,Resourcing & Process,SOLOS CONSULTANTS LTD,,Large,,5106256792,Excel Expert-Forcasting Model Developer,NG16 1LA,"1,361.28",
"Housing, Communities & Local Government",PINS,21/02/2020,EXP � PURCHASE OF GOODS /SERVICES R & D,Research and Development,SOLOS CONSULTANTS LTD,,Large,,5106257029,ODT Business Analyst,NG16 1LA,"2,244.52",
"Housing, Communities & Local Government",PINS,28/02/2020,EXP � PURCHASE OF GOODS /SERVICES R & D,Research and Development,SOLOS CONSULTANTS LTD,,Large,,5106257295,ODT Business Analyst,NG16 1LA,"2,019.72",
"Housing, Communities & Local Government",PINS,07/02/2020,Online Database Information Retrieval,Knowledge & Horizon Scanning,THOMSON REUTERS (PROFESSIONAL) UK L,,Large,,5106256599,Westlaw services,SP10 9AF,"76,200.00",
"Housing, Communities & Local Government",PINS,07/02/2020,Online Database Information Retrieval,Knowledge & Horizon Scanning,THOMSON REUTERS (PROFESSIONAL) UK L,,Large,,5106256599,Westlaw services,SP10 9AF,"7,810.50",
"Housing, Communities & Local Government",PINS,17/02/2020,Online Database Information Retrieval,Knowledge & Horizon Scanning,THOMSON REUTERS (PROFESSIONAL) UK L,,Large,,5106256886,Westlaw 20 Extra Users Subscription,SP10 9AF,"27,170.40",
"Housing, Communities & Local Government",PINS,06/02/2020,Advertising,ROW,TMP (UK) LIMITED,,Large,,5106256476,Statutory Advertising - ROW,W1T 7RQ,"1,101.04",
"Housing, Communities & Local Government",PINS,07/02/2020,Advertising,ROW,TMP (UK) LIMITED,,Large,,5106256579,Statutory Advertising - ROW,W1T 7RQ,440.83,
"Housing, Communities & Local Government",PINS,10/02/2020,Advertising,Resourcing & Process,TMP (UK) LIMITED,,Large,,5106256645,Statutory Advertising - NI,W1T 7RQ,318,
"Housing, Communities & Local Government",PINS,12/02/2020,Advertising,ROW,TMP (UK) LIMITED,,Large,,5106256718,Statutory Advertising - ROW,W1T 7RQ,290.47,
"Housing, Communities & Local Government",PINS,19/02/2020,Training,Communications,Tom Dalgarno,,Micro,,5106256944,Video production services,BS5 7DG,550,
"Housing, Communities & Local Government",PINS,03/02/2020,Training,Resourcing & Process,TRANSMEDIA COMMUNICATIONS LTD,,Small,,5106256237,Adobe Pro Training,SE10 8NB,"1,590.00",
"Housing, Communities & Local Government",PINS,11/02/2020,Translations,Wales Support,TROSOL CYFYNGEDIG,,Small,,5106256698,Pins Wales translation costs extension,CF14 5GH,"2,388.92",
"Housing, Communities & Local Government",PINS,04/02/2020,NSI Fees & Expenses,NSI Fees Planning,URBANGLOW DESIGN & HERITAGE LTD,,Micro,,5106256379,NSI Fees,LS3 1JY,"1,220.00",
"Housing, Communities & Local Government",PINS,14/02/2020,Rent,Wales Support,WELSH GOVERNMENT,,Public Bodies,,5106256785,Office Rental,CF10 3NQ,"44,333.34",
"Housing, Communities & Local Government",PINS,07/02/2020,Office machinery consumables,Business Support,X M A LIMITED,,Data Not Provided,,5106256523,Office machine consumables 19/20,NG11 7EP,"1,089.60",
"Housing, Communities & Local Government",PINS,07/02/2020,Office machinery consumables,Business Support,X M A LIMITED,,Data Not Provided,,5106256525,Office machine consumables 19/20,NG11 7EP,793.44,
"Housing, Communities & Local Government",PINS,07/02/2020,Office machinery consumables,Business Support,X M A LIMITED,,Data Not Provided,,5106256593,Office machine consumables 19/20,NG11 7EP,272.4,
"Housing, Communities & Local Government",PINS,12/02/2020,Office machinery consumables,Business Support,X M A LIMITED,,Data Not Provided,,5106256702,Office machine consumables 19/20,NG11 7EP,344.74,
"Housing, Communities & Local Government",PINS,17/02/2020,Office machinery consumables,Business Support,X M A LIMITED,,Data Not Provided,,5106256882,Office machine consumables 19/20,NG11 7EP,"1,089.60",
"Housing, Communities & Local Government",PINS,20/02/2020,Office machinery consumables,Business Support,X M A LIMITED,,Data Not Provided,,5106256997,Office machine consumables 19/20,NG11 7EP,495.79,
"Housing, Communities & Local Government",PINS,27/02/2020,Office machinery consumables,Business Support,X M A LIMITED,,Data Not Provided,,5106257125,Office machine consumables 19/20,NG11 7EP,"1,562.30",
"Housing, Communities & Local Government",PINS,06/02/2020,IT - Service Contracts,Digital Services,ZSAH LTD,,Small,,5106256395,Fully managed  Dev  environment -,SW7 3HE,"2,259.48",
